fUST/lending_fUST_20251129
["ID","MTS","AMOUNT","RATE_DAILY","PERIOD"]
[395056200,1764382247155,-500.0,0.00014246,2]
[395056201,1764382247164,-556.43,0.00014246,2]
[395056202,1764382247173,-500.0,0.00014246,2]
[395056203,1764382247183,-500.0,0.00014246,2]
[395056204,1764382247243,-500.0,0.00014246,2]
[395056205,1764382247252,-500.0,0.00014246,2]
[395056206,1764382247262,-1305.99,0.00014246,2]
[395056207,1764382247271,-500.0,0.00014246,2]
[395056208,1764382247279,-500.0,0.00014246,2]
[395056209,1764382247289,-500.0,0.00014246,2]
[395056210,1764382247299,-500.0,0.00014246,2]
[395056211,1764382247311,-500.0,0.00014246,2]
[395056212,1764382247321,-2292.09,0.00014246,2]
[395056213,1764382247330,-610.79,0.00014246,2]
[395056214,1764382247339,-500.0,0.00014246,2]
[395056215,1764382247348,-500.0,0.00014246,2]
[395056216,1764382247357,-500.0,0.00014246,2]
[395056217,1764382247366,-909.21,0.00014246,2]
[395056218,1764382247376,-1567.93,0.00014246,2]
[395056219,1764382247385,-500.0,0.00014246,2]
[395056220,1764382247394,-548.63,0.00014246,2]
[395056221,1764382247403,-580.37,0.00014246,2]
[395056222,1764382247412,-4152.18,0.00014246,2]
[395056223,1764382247422,-1107.03,0.00014246,2]
[395056224,1764382247430,-500.0,0.00014246,2]
[395056225,1764382247439,-635.13,0.00014246,2]
[395056226,1764382247449,-537.9,0.00014246,2]
[395056227,1764382247458,-500.0,0.00014246,2]
[395056228,1764382247467,-500.0,0.00014246,2]
[395056229,1764382247476,-1336.22,0.00014246,2]
[395056230,1764382247486,-500.0,0.00014246,2]
[395056231,1764382247496,-8996.15,0.00014246,2]
[395056232,1764382247505,-4264.56,0.00014246,2]
[395056233,1764382247515,-500.0,0.00014246,2]
[395056234,1764382247524,-500.0,0.00014246,2]
[395056235,1764382247533,-500.0,0.00014246,2]
[395056236,1764382247543,-500.0,0.00014246,2]
[395056237,1764382247552,-1167.58,0.00014246,2]
[395056238,1764382247561,-500.0,0.00014246,2]
[395056239,1764382247570,-500.0,0.00014246,2]
[395056240,1764382247579,-500.0,0.00014246,2]
[395056241,1764382247589,-500.0,0.00014246,2]
[395056242,1764382247598,-1129.73,0.00014246,2]
[395056243,1764382247607,-500.0,0.00014246,2]
[395056244,1764382247616,-500.0,0.00014246,2]
[395056245,1764382247625,-1222.9,0.00014246,2]
[395056246,1764382247634,-500.0,0.00014246,2]
[395056247,1764382247643,-1317.87,0.00014246,2]
[395056248,1764382247652,-588.67,0.00014246,2]
[395056249,1764382247661,-1247.35,0.00014246,2]
[395056250,1764382247670,-500.0,0.00014247,2]
[395056251,1764382247679,-503.72329761,0.00014257,2]
[395056252,1764382247688,-666.0,0.0001444,2]
[395056253,1764382247697,-500.0,0.0001452,2]
[395056254,1764382247707,-544.2,0.0001452,2]
[395056255,1764382247716,-500.0,0.0001452,2]
[395056256,1764382247725,-500.0,0.0001452,2]
[395056257,1764382247734,-500.0,0.0001452,2]
[395056258,1764382247743,-552.79,0.0001452,2]
[395056259,1764382247752,-500.0,0.0001452,2]
[395056260,1764382247761,-500.0,0.0001452,2]
[395056261,1764382247771,-500.0,0.0001452,2]
[395056262,1764382247780,-500.0,0.0001452,2]
[395056263,1764382247789,-500.0,0.0001452,2]
[395056264,1764382247798,-500.0,0.0001452,2]
[395056265,1764382247807,-500.0,0.0001452,2]
[395056266,1764382247821,-500.0,0.0001452,2]
[395056267,1764382247829,-500.0,0.0001452,2]
[395056268,1764382247839,-500.0,0.0001452,2]
[395056269,1764382247848,-500.0,0.0001452,2]
[395056270,1764382247858,-500.0,0.0001452,2]
[395056271,1764382247867,-500.0,0.0001452,2]
[395056272,1764382247876,-500.0,0.0001452,2]
[395056273,1764382247886,-363.07148458,0.0001452,2]
[395056274,1764382247895,-246.59008575,0.0001452,2]
[395056275,1764382247905,-500.0,0.0001452,2]
[395056276,1764382247914,-500.0,0.0001452,2]
[395056277,1764382247923,-500.0,0.0001452,2]
[395056278,1764382247932,-500.0,0.0001452,2]
[395056279,1764382247941,-500.0,0.0001452,2]
[395056280,1764382247950,-500.0,0.0001452,2]
[395056281,1764382247959,-870.66,0.0001452,2]
[395056282,1764382247968,-500.0,0.0001452,2]
[395056283,1764382247976,-500.0,0.0001452,2]
[395056284,1764382247985,-500.0,0.0001452,2]
[395056285,1764382247994,-500.0,0.0001452,2]
[395056286,1764382248004,-500.0,0.0001452,2]
[395056287,1764382248013,-500.0,0.0001452,2]
[395056288,1764382248021,-508.16,0.0001452,2]
[395056289,1764382248030,-500.0,0.0001452,2]
[395056290,1764382248039,-500.0,0.0001452,2]
[395056291,1764382248048,-1700.67,0.0001452,2]
[395056292,1764382248057,-500.0,0.0001452,2]
[395056293,1764382248066,-500.0,0.0001452,2]
[395056294,1764382248075,-500.0,0.0001452,2]
[395056295,1764382248084,-500.0,0.0001452,2]
[395056296,1764382248093,-500.0,0.0001452,2]
[395056297,1764382248101,-500.0,0.0001452,2]
[395056298,1764382248111,-1103.23,0.0001452,2]
[395056299,1764382248120,-1300.89,0.0001452,2]
[395056300,1764382248128,-500.0,0.0001452,2]
[395056301,1764382248137,-500.0,0.0001452,2]
[395056302,1764382248146,-500.0,0.0001452,2]
[395056303,1764382248156,-500.0,0.0001452,2]
[395056304,1764382248166,-801.57,0.0001452,2]
[395056305,1764382248175,-500.0,0.0001452,2]
[395056306,1764382248185,-500.0,0.0001452,2]
[395056307,1764382248194,-500.0,0.0001452,2]
[395056308,1764382248203,-500.0,0.0001452,2]
[395056309,1764382248213,-500.0,0.0001452,2]
[395056310,1764382248223,-1101.92,0.0001452,2]
[395056311,1764382248233,-500.0,0.0001452,2]
[395056312,1764382248243,-500.0,0.0001452,2]
[395056313,1764382248252,-500.0,0.0001452,2]
[395056314,1764382248262,-995.32,0.0001452,2]
[395056315,1764382248271,-500.0,0.0001452,2]
[395056316,1764382248280,-500.0,0.0001452,2]
[395056317,1764382248289,-500.0,0.0001452,2]
[395056318,1764382248299,-500.0,0.0001452,2]
[395056319,1764382248308,-500.0,0.0001452,2]
[395056320,1764382248317,-596.27,0.0001452,2]
[395056321,1764382248327,-592.82,0.0001452,2]
[395056322,1764382248336,-500.0,0.0001452,2]
[395056323,1764382248345,-500.0,0.0001452,2]
[395056324,1764382248354,-506.57,0.0001452,2]
[395056325,1764382248363,-500.0,0.0001452,2]
[395056326,1764382248372,-500.0,0.0001452,2]
[395056327,1764382248382,-500.0,0.0001452,2]
[395056328,1764382248391,-1062.63,0.0001452,2]
[395056329,1764382248400,-150.44686712,0.0001452,2]
[395056330,1764382248410,-500.0,0.0001452,2]
[395056331,1764382248419,-500.0,0.0001452,2]
[395056332,1764382248428,-168.28029209,0.0001452,2]
[395056333,1764382248437,-500.0,0.0001452,2]
[395056334,1764382248446,-500.0,0.0001452,2]
[395056335,1764382248455,-500.0,0.0001452,2]
[395056336,1764382248464,-628.42,0.0001452,2]
[395056337,1764382248474,-500.0,0.0001452,2]
[395056338,1764382248485,-362.18902533,0.0001452,2]
[395056339,1764382248494,-502.1,0.0001452,2]
[395056340,1764382248503,-500.0,0.0001452,2]
[395056341,1764382248513,-500.0,0.0001452,2]
[395056342,1764382248522,-907.37,0.0001452,2]
[395056343,1764382248531,-500.0,0.0001452,2]
[395056344,1764382248540,-845.86,0.0001452,2]
[395056345,1764382248549,-500.0,0.0001452,2]
[395056346,1764382248558,-500.0,0.0001452,2]
[395056347,1764382248568,-500.0,0.0001452,2]
[395056348,1764382248577,-500.0,0.0001452,2]
[395056349,1764382248586,-500.0,0.0001452,2]
[395056350,1764382248595,-500.0,0.0001452,2]
[395056351,1764382248604,-743.28,0.0001452,2]
[395056352,1764382248613,-500.0,0.0001452,2]
[395056353,1764382248622,-658.87,0.0001452,2]
[395056354,1764382248631,-500.0,0.0001452,2]
[395056355,1764382248640,-500.0,0.0001452,2]
[395056356,1764382248650,-500.0,0.0001452,2]
[395056357,1764382248659,-500.0,0.0001452,2]
[395056358,1764382248668,-500.0,0.0001452,2]
[395056359,1764382248677,-500.0,0.0001452,2]
[395056360,1764382248686,-500.0,0.0001452,2]
[395056361,1764382248696,-500.0,0.0001452,2]
[395056362,1764382248705,-500.0,0.0001452,2]
[395056363,1764382248715,-500.0,0.0001452,2]
[395056364,1764382248724,-500.0,0.0001452,2]
[395056365,1764382248735,-1153.86,0.0001452,2]
[395056366,1764382248744,-539.21,0.0001452,2]
[395056367,1764382248753,-1127.96,0.0001452,2]
[395056368,1764382248763,-542.12,0.0001452,2]
[395056369,1764382248772,-1304.85,0.0001452,2]
[395056370,1764382248781,-500.0,0.0001452,2]
[395056371,1764382248790,-1970.85,0.0001452,2]
[395056372,1764382248800,-500.0,0.0001452,2]
[395056373,1764382248809,-858.48,0.0001452,2]
[395056374,1764382248822,-776.29,0.0001452,2]
[395056375,1764382248832,-500.0,0.0001452,2]
[395056376,1764382248841,-500.0,0.0001452,2]
[395056377,1764382248850,-500.0,0.0001452,2]
[395056378,1764382248861,-1621.14,0.0001452,2]
[395056379,1764382248870,-760.58,0.0001452,2]
[395056380,1764382248879,-500.0,0.0001452,2]
[395056381,1764382248888,-512.27,0.0001452,2]
[395056382,1764382248897,-752.8,0.0001452,2]
[395056383,1764382248906,-751.45,0.0001452,2]
[395056384,1764382248916,-500.0,0.0001452,2]
[395056385,1764382248926,-1338.21,0.0001452,2]
[395056386,1764382248935,-1353.88,0.0001452,2]
[395056387,1764382248945,-547.34,0.0001452,2]
[395056388,1764382248953,-500.0,0.0001452,2]
[395056389,1764382248963,-559.94,0.0001452,2]
[395056390,1764382248972,-878.46,0.0001452,2]
[395056391,1764382248981,-992.52,0.0001452,2]
[395056392,1764382248991,-1051.53,0.0001452,2]
[395056393,1764382249000,-500.0,0.0001452,2]
[395056394,1764382249009,-1215.03,0.0001452,2]
[395056395,1764382249019,-500.0,0.0001452,2]
[395056396,1764382249027,-500.0,0.0001452,2]
[395056397,1764382249036,-500.0,0.0001452,2]
[395056398,1764382249046,-778.72,0.0001452,2]
[395056399,1764382249055,-2022.05,0.0001452,2]
[395056400,1764382249064,-500.0,0.0001452,2]
[395056401,1764382249073,-500.0,0.0001452,2]
[395056402,1764382249082,-1949.44,0.0001452,2]
[395056403,1764382249091,-552.25,0.0001452,2]
[395056404,1764382249100,-500.0,0.0001452,2]
[395056405,1764382249109,-500.0,0.0001452,2]
[395056406,1764382249118,-806.1,0.0001452,2]
[395056407,1764382249127,-1677.31,0.0001452,2]
[395056408,1764382249137,-3792.95,0.0001452,2]
[395056409,1764382249146,-500.0,0.0001452,2]
[395056410,1764382249155,-512.74,0.0001452,2]
[395056411,1764382249165,-1780.64,0.0001452,2]
[395056412,1764382249174,-500.0,0.0001452,2]
[395056413,1764382249183,-500.0,0.0001452,2]
[395056414,1764382249193,-500.0,0.0001452,2]
[395056415,1764382249202,-500.0,0.0001452,2]
[395056416,1764382249211,-500.0,0.0001452,2]
[395056417,1764382249221,-500.0,0.0001452,2]
[395056418,1764382249230,-500.0,0.0001452,2]
[395056419,1764382249238,-533.74,0.0001452,2]
[395056420,1764382249247,-553.69,0.0001452,2]
[395056421,1764382249256,-852.95,0.0001452,2]
[395056422,1764382249265,-500.0,0.0001452,2]
[395056423,1764382249274,-500.0,0.0001452,2]
[395056424,1764382249283,-500.0,0.0001452,2]
[395056425,1764382249292,-500.0,0.0001452,2]
[395056426,1764382249301,-1863.37,0.0001452,2]
[395056427,1764382249310,-500.0,0.0001452,2]
[395056428,1764382249320,-500.0,0.0001452,2]
[395056429,1764382249329,-573.33,0.0001452,2]
[395056430,1764382249338,-2732.13,0.0001452,2]
[395056431,1764382249349,-706.08,0.0001452,2]
[395056432,1764382249359,-695.37,0.0001452,2]
[395056433,1764382249368,-994.77,0.0001452,2]
[395056434,1764382249377,-500.0,0.0001452,2]
[395056435,1764382249387,-711.35,0.0001452,2]
[395056436,1764382249397,-500.0,0.0001452,2]
[395056437,1764382249406,-500.0,0.0001452,2]
[395056438,1764382249415,-1668.18,0.0001452,2]
[395056439,1764382249424,-500.0,0.0001452,2]
[395056440,1764382249434,-500.0,0.0001452,2]
[395056441,1764382249445,-1381.16,0.0001452,2]
[395056442,1764382249454,-500.0,0.0001452,2]
[395056443,1764382249464,-500.0,0.0001452,2]
[395056444,1764382249473,-1118.28,0.0001452,2]
[395056445,1764382249483,-2148.12,0.0001452,2]
[395056446,1764382249493,-2572.8,0.0001452,2]
[395056447,1764382249502,-763.4,0.0001452,2]
[395056448,1764382249511,-890.72282565,0.0001452,2]
[395056449,1764382250043,-500.0,0.00013698,2]
[395056450,1764382250053,-500.0,0.00013972,2]
[395056451,1764382250061,-500.0,0.00014246,2]
[395056452,1764382250070,-1155.35717435,0.0001452,2]
[395056453,1764382250079,-500.0,0.0001452,2]
[395056454,1764382250088,-556.43,0.0001452,2]
[395056455,1764382250096,-500.0,0.0001452,2]
[395056456,1764382250105,-500.0,0.0001452,2]
[395056457,1764382250114,-500.0,0.0001452,2]
[395056458,1764382250123,-493.3546769,0.0001452,2]
[395056459,1764382268692,213.0826872,8.907e-05,2]
[395056460,1764382269337,213.0826872,0.00010993,2]
[395056461,1764382269971,213.0826872,0.00013079,2]
[395056590,1764382858186,198.93163646,9.111e-05,2]
[395056614,1764383145128,-242.46709763,0.00012536,2]
[395056615,1764383145151,-375.42925884,0.00012663,2]
[395056616,1764383145173,-800.53427631,0.00012791,2]
[395056623,1764383230105,-198.46572369,0.00012791,2]
[395056624,1764383230127,-42.01478145,0.00012791,2]
[395056625,1764383242107,-204.29682157,0.00012791,2]
[395056626,1764383251082,-51.79789559,0.00012791,2]
[395056627,1764383251104,-150.0,0.00012791,2]
[395056628,1764383251124,-255.0,0.00012791,2]
[395056629,1764383251145,-468.54417412,0.00013562,2]
[395056632,1764383349082,-2381.55510322,0.0001,2]
[395056633,1764383349103,-150.0,0.00012791,2]
[395056634,1764383349124,-300.0,0.00013103,2]
[395056635,1764383349145,-190.31922167,0.00013104,2]
[395056636,1764383349168,-342.574599,0.00013104,2]
[395056637,1764383349189,-609.02150933,0.00013104,2]
[395056638,1764383349210,-832.94593734,0.00013104,2]
[395056639,1764383353128,-117.69857488,0.00013104,2]
[395056640,1764383361083,-2027.90227687,0.00013562,2]
[395056641,1764383361102,-157.96340281,0.00013573,2]
[395056642,1764383361123,-500.0,0.00013573,2]
[395056643,1764383361142,-505.0383334,0.00013573,2]
[395056644,1764383361161,-500.0,0.00013573,2]
[395056645,1764383361186,-500.0,0.00013573,2]
[395056646,1764383361204,-500.0,0.00013573,2]
[395056647,1764383361225,-500.0,0.00013573,2]
[395056648,1764383361245,-666.0,0.00013586,2]
[395056649,1764383361266,-194.72792766,0.00013586,2]
[395056650,1764383361287,-641.897471,0.00013593,2]
[395056651,1764383361309,-500.0,0.00013593,2]
[395056652,1764383361335,-500.0,0.00013593,2]
[395056653,1764383361356,-154.78499879,0.00013593,2]
[395056654,1764383361380,-500.0,0.00013593,2]
[395056655,1764383361404,-354.02623415,0.00013593,2]
[395056656,1764383361427,-500.0,0.00013593,2]
[395056657,1764383361448,-500.0,0.00013593,2]
[395056658,1764383361472,-330.53257455,0.00013593,2]
[395056662,1764383422069,534.54198971,0.00013473,2]
[395056664,1764383422363,1783.76009365,0.00013494,2]
[395056665,1764383422388,2320.91470071,0.00013494,2]
[395056712,1764383431811,-258.52668881,0.00013493,2]
[395056714,1764383431823,-190.80154089,0.00013493,2]
[395056716,1764383431832,-2097.23012511,0.00013494,2]
[395056719,1764383431842,-379.5190505,0.00013494,2]
[395056721,1764383431853,-19963.19024928,0.00013494,2]
[395056736,1764383431980,-922.53060898,0.00013494,2]
[395056816,1764383437743,-529.46489486,0.00013494,2]
[395056824,1764383437802,-1026.99931256,0.00013494,2]
[395056826,1764383437816,-1888.3931287,0.00013494,2]
[395056832,1764383437862,-8062.91741509,0.00013494,2]
[395056835,1764383437875,-2255.20380549,0.00013494,2]
[395057009,1764383442979,-555.39391085,0.00013494,2]
[395057019,1764383446059,-22.69964684,0.00013494,2]
[395057021,1764383471913,272.62428406,8.907e-05,2]
[395057022,1764383472353,272.62428406,0.00010776,2]
[395057023,1764383473070,272.62428406,0.00012645,2]
[395057024,1764383502649,227.285,0.00013224,2]
[395057037,1764383536018,269.16032013,0.00012645,2]
[395057039,1764383551434,-2978.11920596,0.00037047,30]
[395057040,1764383551458,-3130.0,0.00037047,120]
[395057041,1764383551482,-163.44960159,0.00037047,30]
[395057042,1764383551507,-203.13514,0.00037047,60]
[395057043,1764383551532,-203.13514,0.00037047,60]
[395057044,1764383551557,-596.87581131,0.00037047,120]
[395057045,1764383551581,-10000.0,0.00037047,120]
[395057046,1764383551606,-233.03443287,0.00037047,120]
[395057047,1764383551631,-903.42667353,0.00037047,30]
[395057048,1764383551657,-300.06269052,0.00037047,120]
[395057049,1764383551682,-1002.49935934,0.00037047,120]
[395057050,1764383551707,-313.53138429,0.00037047,30]
[395057051,1764383551732,-442.87590561,0.00037047,120]
[395057052,1764383551756,-1840.65833417,0.00037047,30]
[395057053,1764383551781,-168.77692152,0.00037047,120]
[395057054,1764383551808,-3190.5928249,0.00037047,120]
[395057055,1764383551834,-227.78192406,0.00037047,120]
[395057056,1764383551859,-366.05350709,0.00037047,120]
[395057057,1764383551888,-162.52779774,0.00037047,120]
[395057058,1764383551915,-557.47557729,0.00037047,30]
[395057059,1764383551941,-337.91173311,0.00037047,30]
[395057060,1764383551966,-15178.03006723,0.00037047,30]
[395057061,1764383551991,-162.50811,0.00037047,60]
[395057062,1764383552016,-162.50811,0.00037047,60]
[395057063,1764383552041,-162.50811,0.00037047,60]
[395057064,1764383552066,-162.50811,0.00037047,60]
[395057065,1764383552092,-162.50811,0.00037047,60]
[395057066,1764383552117,-2533.68015457,0.00037047,120]
[395057067,1764383552142,-1264.81804998,0.00037047,30]
[395057068,1764383552170,-861.59702861,0.00037047,120]
[395057069,1764383552195,-285.927687,0.00037047,120]
[395057070,1764383552222,-903.94273,0.00037047,30]
[395057071,1764383552248,-639.48313439,0.00037047,120]
[395057072,1764383552273,-951.94789227,0.00037047,120]
[395057073,1764383552298,-281.92338262,0.00037047,120]
[395057074,1764383552571,-1153.27541055,0.00037047,120]
[395057075,1764383552598,-616.54799492,0.00037047,30]
[395057076,1764383552622,-287.98641366,0.00037047,30]
[395057077,1764383552646,-240.82074905,0.00037047,120]
[395057078,1764383552671,-5658.46368685,0.00037047,120]
[395057079,1764383552695,-576.21972723,0.00037047,120]
[395057080,1764383552719,-657.1883866,0.00037047,120]
[395057081,1764383552743,-639.5037804,0.00037047,120]
[395057082,1764383552768,-227.42198916,0.00037047,120]
[395057083,1764383552793,-1047.18019521,0.00037047,120]
[395057084,1764383552819,-692.50862314,0.00037047,120]
[395057085,1764383552844,-384.12223041,0.00037047,30]
[395057086,1764383552870,-1493.20186527,0.00037047,120]
[395057087,1764383552894,-329.09764165,0.00037047,120]
[395057088,1764383552920,-2112.96170796,0.00037047,60]
[395057089,1764383552943,-566.09355511,0.00037047,120]
[395057090,1764383552967,-203.46015821,0.00037047,120]
[395057091,1764383552992,-2964.48460665,0.00037047,60]
[395057092,1764383553018,-551.7506103,0.00037047,120]
[395057093,1764383553043,-5346.87905185,0.00037047,30]
[395057094,1764383553068,-830.80386985,0.00037047,60]
[395057095,1764383553093,-1221.70111627,0.00037047,30]
[395057096,1764383553119,-963.07765373,0.00037047,120]
[395057097,1764383553145,-357.3545508,0.00037047,120]
[395057098,1764383553172,-1003.93558889,0.00037047,30]
[395057099,1764383553199,-2292.37802589,0.00037047,120]
[395057100,1764383553225,-2521.09021504,0.00037047,60]
[395057101,1764383553256,-177.27124098,0.00037047,120]
[395057102,1764383553281,-1727.11213953,0.00037047,30]
[395057103,1764383553308,-685.20429348,0.00037047,120]
[395057104,1764383553334,-1025.42930684,0.00037047,30]
[395057105,1764383553359,-586.08040521,0.00037047,120]
[395057106,1764383553384,-893.23209898,0.00037047,60]
[395057107,1764383553409,-720.4200861,0.00037047,120]
[395057108,1764383553435,-162.5081,0.00037047,60]
[395057109,1764383553461,-162.5081,0.00037047,60]
[395057110,1764383553486,-162.5081,0.00037047,60]
[395057111,1764383553510,-162.5081,0.00037047,60]
[395057112,1764383553535,-162.5081,0.00037047,60]
[395057113,1764383553559,-709.58094,0.00037047,120]
[395057114,1764383553583,-644.489,0.00037047,120]
[395057115,1764383553608,-184.93420146,0.00037047,30]
[395057116,1764383553634,-1031.27,0.00037047,120]
[395057117,1764383553659,-920.24569784,0.00037047,60]
[395057118,1764383553683,-3000.0,0.00037047,120]
[395057119,1764383553708,-361.26539613,0.00037047,30]
[395057120,1764383553733,-507.11980773,0.00037047,120]
[395057121,1764383553757,-1000.0,0.00037047,120]
[395057122,1764383553782,-50000.0,0.00037047,35]
[395057123,1764383553807,-799.959999,0.00037047,32]
[395057124,1764383553832,-200000.0,0.00037047,33]
[395057125,1764383553858,-3083.14438681,0.00037047,120]
[395057126,1764383553883,-328.0,0.00037047,30]
[395057127,1764383553908,-485.22917632,0.00037047,120]
[395057128,1764383553933,-1043.37357748,0.00037047,120]
[395057129,1764383553957,-364.85792731,0.00037047,60]
[395057130,1764383553982,-200000.0,0.00037047,120]
[395057131,1764383554008,-1197.00500201,0.00037047,61]
[395057132,1764383554033,-70402.67033581,0.00037047,60]
[395057133,1764383554058,-77040.68629467,0.00037047,30]
[395057134,1764383554086,-265092.86409733,0.00037047,30]
[395057135,1764383554114,-200.0,0.00037047,120]
[395057136,1764383554147,-732.49,0.00037047,120]
[395057137,1764383554179,-600.0,0.00037047,120]
[395057138,1764383554219,-1065.0,0.00037047,120]
[395057139,1764383554274,-111291.71922762,0.00037047,60]
[395057140,1764383554316,-1007.6059651,0.00037047,120]
[395057141,1764383554351,-154.53010165,0.00037047,30]
[395057142,1764383554383,-193.95539305,0.00037047,30]
[395057143,1764383554413,-950.87769,0.00037047,120]
[395057144,1764383554442,-10128.80073365,0.00037047,31]
[395057145,1764383554472,-89894.96701541,0.00037047,120]
[395057146,1764383554504,-20190.0,0.00037047,120]
[395057147,1764383554534,-4714.33069373,0.00037047,120]
[395057148,1764383554565,-192.49928,0.00037047,120]
[395057149,1764383554597,-201761.3270939,0.00037047,60]
[395057150,1764383554628,-5000.0,0.00037047,30]
[395057151,1764383554658,-3000.0,0.00037047,30]
[395057152,1764383554687,-5118.0,0.00037047,60]
[395057153,1764383554714,-502412.47570902,0.00037047,30]
[395057154,1764383554742,-70592.11113963,0.00037047,30]
[395057157,1764383696371,209.60802616,9.111e-05,2]
[395057158,1764383726254,-174.4290378,0.00013338,2]
[395057159,1764383726279,-150.0,0.00013406,2]
[395057160,1764383726302,-1200.0,0.00013472,2]
[395057161,1764383726326,-500.64309563,0.00013473,2]
[395057162,1764383726348,-500.92019978,0.00013473,2]
[395057163,1764383726370,-500.0,0.00013473,2]
[395057164,1764383726393,-500.0,0.00013473,2]
[395057165,1764383726415,-500.0,0.00013473,2]
[395057166,1764383726436,-500.0,0.00013473,2]
[395057167,1764383726458,-7858.98960185,0.00013473,2]
[395057168,1764383726480,-300.0,0.00013492,2]
[395057169,1764383726503,-300.0,0.00013492,2]
[395057170,1764383726524,-300.0,0.00013492,2]
[395057171,1764383726546,-212.0,0.00013492,2]
[395057172,1764383726574,-500.0,0.00013493,2]
[395057173,1764383726598,-500.0,0.00013493,2]
[395057174,1764383726627,-375.47034035,0.00013493,2]
[395057175,1764383726651,-500.0,0.00013493,2]
[395057176,1764383726678,-500.0,0.00013493,2]
[395057177,1764383726701,-202.21105289,0.00013493,2]
[395057178,1764383726728,-500.0,0.00013493,2]
[395057179,1764383726756,-500.0,0.00013493,2]
[395057180,1764383726783,-500.0,0.00013493,2]
[395057181,1764383726810,-635.5312266,0.00013493,2]
[395057182,1764383726832,-500.0,0.00013493,2]
[395057183,1764383726856,-537.13300268,0.00013493,2]
[395057184,1764383726880,-500.0,0.00013493,2]
[395057185,1764383726908,-499.99999999,0.00013493,2]
[395057186,1764383726930,-300.0,0.00013493,2]
[395057187,1764383726956,-179452.67244243,0.00013494,2]
[395057188,1764383804129,3602.4,0.0002,30]
[395057200,1764384342092,-261.0,0.00013472,2]
[395057201,1764384342112,-150.0,0.00013472,2]
[395057202,1764384342131,-179.08768384,0.00013493,2]
[395057203,1764384342155,-292.83680296,0.00013493,2]
[395057204,1764384342174,-300.0,0.00013493,2]
[395057205,1764384342194,-283.58865499,0.00013493,2]
[395057206,1764384429079,-208.69948179,0.00012645,2]
[395057207,1764384429123,-818.49988283,0.00013394,2]
[395057208,1764384434086,-434.77948308,0.00013394,2]
[395057209,1764384445072,-717.81147018,0.00013394,2]
[395057210,1764384451079,-174.21652698,0.00013394,2]
[395057211,1764384558110,-238.43087596,0.00013104,2]
[395057212,1764384558130,-272.49242967,0.00013104,2]
[395057213,1764384558152,-425.34365194,0.00013104,2]
[395057214,1764384558174,-150.0,0.00013238,2]
[395057215,1764384562082,-500.0,0.00013373,2]
[395057216,1764384562103,-500.0,0.00013373,2]
[395057217,1764384562122,-107.85160676,0.00013373,2]
[395057218,1764384568307,-77.65554545,0.00013373,2]
[395057219,1764384568327,-300.0,0.00013393,2]
[395057220,1764384568348,-217280.98386869,0.00013394,2]
[395057221,1764384574137,-38495.14192657,0.00013394,2]
[395057233,1764384632398,-502.49256047,0.00013373,2]
[395057234,1764384632410,-500.75785431,0.00013373,2]
[395057235,1764384632419,-520.3051218,0.00013373,2]
[395057236,1764384632429,-500.0,0.00013373,2]
[395057237,1764384632439,-300.0,0.00013393,2]
[395057238,1764384632448,-916.0,0.00013393,2]
[395057239,1764384632458,-1385.42749142,0.00013394,2]
[395057240,1764384632470,-1435.27231834,0.00013394,2]
[395057321,1764384638187,-263.26685921,0.00013394,2]